fUST/lending_fUST_20251129
["ID","MTS","AMOUNT","RATE_DAILY","PERIOD"]
[395095522,1764424098358,703.30079828,0.00010591,2]
[395095529,1764424143529,300.0,0.00010798,2]
[395095573,1764424201593,8434.47027413,0.00010699,2]
[395095574,1764424201619,10000.01,0.00010699,2]
[395095575,1764424201644,10000.01,0.00010699,2]
[395095576,1764424201669,10000.01,0.00010699,2]
[395095577,1764424201694,10000.01,0.00010699,2]
[395095578,1764424201719,10000.01,0.00010699,2]
[395095579,1764424201743,10000.01,0.00010699,2]
[395095580,1764424201768,10000.01,0.00010699,2]
[395095581,1764424201795,10000.01,0.00010699,2]
[395095593,1764424219736,-890.0,0.00010698,2]
[395095686,1764424232451,-6978.2907411,0.00010699,2]
[395095687,1764424232509,-35582.68724282,0.00010699,2]
[395095688,1764424232520,-9825.14426171,0.00010699,2]
[395095714,1764424238607,-10615.0840201,0.00010699,2]
[395095715,1764424238665,-890.79079948,0.00010699,2]
[395095716,1764424238676,-302.0,0.00010699,2]
[395095717,1764424238725,-446.03775753,0.00010699,2]
[395095718,1764424238736,-455.70417096,0.00010699,2]
[395095765,1764424240684,-254.01130894,0.00010699,2]
[395095766,1764424240695,-1553.17549407,0.00010699,2]
[395095767,1764424240740,-841.52588397,0.00010699,2]
[395095768,1764424240751,-2782.94548606,0.00010699,2]
[395095769,1764424240762,-81632.00000001,0.00010699,2]
[395095770,1764424240799,-649406.05255912,0.00010699,2]
[395095771,1764424240808,-300.0,0.00010798,2]
[395095772,1764424240817,-187.78006525,0.00010799,2]
[395095773,1764424240826,-231.18076995,0.00010819,2]
[395095774,1764424240835,-50000.0,0.00010959,2]
[395095775,1764424240844,-500.0,0.00010959,2]
[395095776,1764424240853,-592.26591119,0.00010959,2]
[395095777,1764424240861,-500.0,0.00010959,2]
[395095778,1764424240870,-500.0,0.00010959,2]
[395095779,1764424240879,-500.0,0.00010959,2]
[395095780,1764424240888,-194.72792766,0.00011347,2]
[395095781,1764424240898,-414.0,0.0001158,2]
[395095782,1764424240906,-414.0,0.0001158,2]
[395095783,1764424240916,-2151.0,0.0001158,2]
[395095784,1764424240925,-630.0,0.0001158,2]
[395095785,1764424240934,-990.0,0.0001158,2]
[395095786,1764424240944,-386.9299915,0.00011641,2]
[395095787,1764424240954,-315.76378196,0.00011724,2]
[395095788,1764424240964,-420.0,0.00011868,2]
[395095789,1764424240973,-201.93286099,0.00011895,2]
[395095790,1764424240982,-834.07,0.00012008,2]
[395095791,1764424240991,-834.07,0.00012008,2]
[395095792,1764424241000,-349.04528596,0.00012012,2]
[395095793,1764424241009,-800.0,0.00012047,2]
[395095794,1764424241019,-800.0,0.00012053,2]
[395095795,1764424241028,-800.0,0.00012086,2]
[395095796,1764424241037,-800.0,0.00012126,2]
[395095797,1764424241045,-800.0,0.00012147,2]
[395095798,1764424241054,-800.0,0.00012148,2]
[395095799,1764424241063,-800.0,0.00012152,2]
[395095800,1764424241072,-993.7854553,0.00012167,2]
[395095801,1764424241081,-800.0,0.00012174,2]
[395095802,1764424241090,-800.0,0.00012176,2]
[395095803,1764424241099,-800.0,0.0001219,2]
[395095804,1764424241109,-800.0,0.00012204,2]
[395095805,1764424241118,-800.0,0.00012219,2]
[395095806,1764424241127,-80237.4160814,0.0001223,2]
[395095807,1764424241137,-1537.8315193,0.0001223,2]
[395095808,1764424241146,-21898.17322,0.0001223,2]
[395095809,1764424241155,-800.0,0.0001223,2]
[395095810,1764424241165,-800.0,0.00012247,2]
[395095811,1764424241173,-3664.5192987,0.0001225,2]
[395095812,1764424241182,-800.0,0.00012263,2]
[395095813,1764424241191,-800.0,0.00012274,2]
[395095814,1764424241199,-1300.0,0.000123,2]
[395095815,1764424241208,-318.99293034,0.00012311,2]
[395095816,1764424241217,-800.0,0.00012318,2]
[395095817,1764424241226,-500.0,0.00012318,2]
[395095818,1764424241234,-288.06,0.00012329,2]
[395095819,1764424241243,-240.05,0.00012329,2]
[395095820,1764424241253,-200.04,0.00012329,2]
[395095821,1764424241262,-166.7,0.00012329,2]
[395095822,1764424241271,-833.55,0.00012329,2]
[395095823,1764424241279,-314.48764574,0.00012329,2]
[395095824,1764424241289,-209.40437684,0.00012443,2]
[395095825,1764424241300,-1834.04482764,0.000125,2]
[395095826,1764424241310,-500.0,0.00012592,2]
[395095827,1764424241318,-272.79330854,0.00012819,2]
[395095828,1764424241327,-500.0,0.00012866,2]
[395095829,1764424241336,-587.0,0.00012944,2]
[395095830,1764424241345,-472.19,0.00012944,2]
[395095831,1764424241354,-472.19,0.00012944,2]
[395095832,1764424241363,-472.19,0.00012944,2]
[395095833,1764424241372,-472.19,0.00012944,2]
[395095834,1764424241381,-472.19,0.00012944,2]
[395095835,1764424241390,-472.19,0.00012944,2]
[395095836,1764424241399,-472.17,0.00012944,2]
[395095837,1764424241408,-217.15233878,0.00012991,2]
[395095838,1764424241418,-587.0,0.00013044,2]
[395095839,1764424241427,-500.0,0.0001314,2]
[395095840,1764424241436,-500.0,0.00013273,2]
[395095841,1764424241445,-500.0,0.00013273,2]
[395095842,1764424241454,-501.65511984,0.00013273,2]
[395095843,1764424241463,-500.0,0.00013273,2]
[395095844,1764424241472,-544.40394668,0.00013273,2]
[395095845,1764424241481,-500.0,0.00013273,2]
[395095846,1764424241490,-510.42421473,0.00013273,2]
[395095847,1764424241499,-512.47457159,0.00013273,2]
[395095848,1764424241509,-648.31511266,0.00013273,2]
[395095849,1764424241518,-500.0,0.00013273,2]
[395095850,1764424241527,-500.0,0.00013273,2]
[395095851,1764424241536,-506.96891342,0.00013273,2]
[395095853,1764424241545,-216.21279886,0.00013273,2]
[395095855,1764424241554,-500.0,0.00013273,2]
[395095857,1764424241563,-500.0,0.00013273,2]
[395095859,1764424241572,-435.54742185,0.00013273,2]
[395095860,1764424241580,-500.0,0.00013273,2]
[395095861,1764424241589,-500.0,0.00013273,2]
[395095862,1764424241597,-500.0,0.00013273,2]
[395095863,1764424241606,-500.0,0.00013273,2]
[395095865,1764424241615,-500.0,0.00013273,2]
[395095867,1764424241623,-500.0,0.00013273,2]
[395095869,1764424241632,-500.0,0.00013273,2]
[395095871,1764424241641,-500.45448968,0.00013273,2]
[395095873,1764424241649,-500.0,0.00013273,2]
[395095875,1764424241658,-500.0,0.00013273,2]
[395095876,1764424241667,-500.0,0.00013273,2]
[395095878,1764424241676,-500.0,0.00013273,2]
[395095880,1764424241685,-500.0,0.00013273,2]
[395095883,1764424241695,-158.28169385,0.00013273,2]
[395095884,1764424241708,-500.0,0.00013273,2]
[395095887,1764424241721,-500.6881101,0.00013273,2]
[395095889,1764424241730,-164.88898097,0.00013273,2]
[395095891,1764424241739,-500.0,0.00013273,2]
[395095893,1764424241748,-500.0,0.00013273,2]
[395095895,1764424241757,-500.0,0.00013273,2]
[395095897,1764424241767,-500.0,0.00013273,2]
[395095899,1764424241775,-500.79867649,0.00013273,2]
[395095901,1764424241784,-579.00668277,0.00013273,2]
[395095903,1764424241793,-500.0,0.00013273,2]
[395095905,1764424241802,-325.17434187,0.00013273,2]
[395095907,1764424241811,-500.0,0.00013273,2]
[395095908,1764424241820,-502.35107951,0.00013273,2]
[395095910,1764424241830,-500.0,0.00013273,2]
[395095913,1764424241842,-500.0,0.00013273,2]
[395095914,1764424241851,-500.0,0.00013273,2]
[395095915,1764424241861,-500.0,0.00013273,2]
[395095916,1764424241870,-500.0,0.00013273,2]
[395095918,1764424241879,-500.0,0.00013273,2]
[395095920,1764424241887,-500.0,0.00013273,2]
[395095922,1764424241896,-500.0,0.00013273,2]
[395095923,1764424241906,-500.0,0.00013273,2]
[395095924,1764424241915,-500.5585097,0.00013273,2]
[395095925,1764424241924,-500.38647478,0.00013273,2]
[395095926,1764424241933,-500.0,0.00013273,2]
[395095927,1764424241942,-1300.0,0.000133,3]
[395095928,1764424241951,-250.0,0.00013342,2]
[395095930,1764424241960,-500.0,0.00013414,2]
[395095932,1764424241969,-993.7854553,0.00013471,2]
[395095933,1764424241978,-225.18697532,0.00013539,2]
[395095935,1764424241987,-1537.8315193,0.00013541,2]
[395095937,1764424241996,-14280.86877687,0.00013598,2]
[395095939,1764424242005,-300.0,0.00013673,2]
[395095941,1764424242014,-500.0,0.00013688,2]
[395095943,1764424242023,-501.04294476,0.00013698,2]
[395095944,1764424242032,-500.0,0.00013698,2]
[395095945,1764424242041,-500.0,0.00013698,2]
[395095946,1764424242050,-500.0,0.00013698,2]
[395095947,1764424242059,-500.0,0.00013698,2]
[395095949,1764424242069,-355.35395316,0.00013698,2]
[395095951,1764424242077,-500.85905579,0.00013698,2]
[395095953,1764424242086,-502.22968393,0.00013698,2]
[395095954,1764424242095,-500.84387124,0.00013698,2]
[395095956,1764424242104,-501.67702884,0.00013698,2]
[395095957,1764424242114,-505.32621121,0.00013698,2]
[395095958,1764424242123,-501.02033731,0.00013698,2]
[395095959,1764424242131,-500.0,0.00013698,2]
[395095960,1764424242141,-500.88622635,0.00013698,2]
[395095961,1764424242150,-500.0,0.00013698,2]
[395095962,1764424242160,-151.0,0.00013698,2]
[395095963,1764424242169,-151.0,0.00013698,2]
[395095964,1764424242178,-151.0,0.00013698,2]
[395095965,1764424242187,-151.0,0.00013698,2]
[395095966,1764424242196,-500.0,0.00013698,2]
[395095967,1764424242205,-507.09801931,0.00013698,2]
[395095968,1764424242214,-502.44586685,0.00013698,2]
[395095969,1764424242223,-507.88332125,0.00013698,2]
[395095970,1764424242232,-266.2342484,0.00013698,2]
[395095971,1764424242241,-500.0,0.00013698,2]
[395095972,1764424242250,-151.0,0.00013698,2]
[395095973,1764424242259,-151.0,0.00013698,2]
[395095974,1764424242267,-160.507096,0.00013698,2]
[395095975,1764424242277,-500.42634439,0.00013698,2]
[395095976,1764424242285,-500.0,0.00013698,2]
[395095977,1764424242294,-151.0,0.00013698,2]
[395095978,1764424242303,-151.0,0.00013698,2]
[395095979,1764424242312,-151.0,0.00013698,2]
[395095980,1764424242321,-151.0,0.00013698,2]
[395095981,1764424242330,-151.0,0.00013698,2]
[395095982,1764424242340,-151.0,0.00013698,2]
[395095983,1764424242349,-151.0,0.00013698,2]
[395095984,1764424242358,-265.913745,0.00013698,2]
[395095985,1764424242367,-151.0,0.00013698,2]
[395095986,1764424242376,-151.0,0.00013698,2]
[395095987,1764424242385,-151.0,0.00013698,2]
[395095988,1764424242394,-151.0,0.00013698,2]
[395095989,1764424242403,-151.0,0.00013698,2]
[395095990,1764424242412,-151.0,0.00013698,2]
[395095991,1764424242422,-151.0,0.00013698,2]
[395095992,1764424242430,-151.0,0.00013698,2]
[395095993,1764424242440,-151.0,0.00013698,2]
[395095994,1764424242449,-151.0,0.00013698,2]
[395095995,1764424242458,-151.0,0.00013698,2]
[395095996,1764424242467,-278.762317,0.00013698,2]
[395095997,1764424242476,-500.0,0.00013698,2]
[395095998,1764424242485,-500.0,0.00013698,2]
[395095999,1764424242494,-500.47935008,0.00013698,2]
[395096000,1764424242502,-151.02286003,0.00013698,2]
[395096001,1764424242511,-500.0,0.00013698,2]
[395096002,1764424242520,-500.0,0.00013698,2]
[395096003,1764424242529,-500.0,0.00013698,2]
[395096004,1764424242538,-1428.96,0.00013698,2]
[395096005,1764424242547,-500.0,0.00013698,2]
[395096006,1764424242556,-500.0,0.00013698,2]
[395096007,1764424242565,-500.0,0.00013698,2]
[395096008,1764424242576,-151.0,0.00013698,2]
[395096009,1764424242584,-169.434932,0.00013698,2]
[395096010,1764424242593,-500.0,0.00013698,2]
[395096011,1764424242602,-500.0,0.00013698,2]
[395096012,1764424242611,-500.0,0.00013698,2]
[395096013,1764424242620,-903.4,0.00013698,2]
[395096014,1764424242629,-587.4,0.00013698,2]
[395096015,1764424242638,-500.0,0.00013698,2]
[395096016,1764424242647,-500.0,0.00013698,2]
[395096017,1764424242657,-500.0,0.00013698,2]
[395096018,1764424242666,-500.0,0.00013698,2]
[395096019,1764424242675,-500.0,0.00013698,2]
[395096020,1764424242685,-500.0,0.00013698,2]
[395096021,1764424242694,-500.0,0.00013698,2]
[395096022,1764424242703,-500.0,0.00013698,2]
[395096023,1764424242712,-500.0,0.00013698,2]
[395096024,1764424242721,-500.0,0.00013698,2]
[395096025,1764424242732,-500.0,0.00013698,2]
[395096026,1764424242741,-500.0,0.00013698,2]
[395096027,1764424242751,-500.0,0.00013698,2]
[395096028,1764424242760,-500.0,0.00013698,2]
[395096029,1764424242770,-500.0,0.00013698,2]
[395096030,1764424242779,-500.0,0.00013698,2]
[395096031,1764424242788,-500.0,0.00013698,2]
[395096032,1764424242797,-500.0,0.00013698,2]
[395096033,1764424242807,-500.0,0.00013698,2]
[395096034,1764424242818,-500.0,0.00013698,2]
[395096035,1764424242827,-500.0,0.00013698,2]
[395096036,1764424242836,-500.0,0.00013698,2]
[395096037,1764424242846,-500.0,0.00013698,2]
[395096038,1764424242855,-259.19012218,0.00013698,2]
[395096039,1764424242867,-473.85,0.00013698,2]
[395096040,1764424242876,-500.0,0.00013698,2]
[395096041,1764424242886,-500.0,0.00013698,2]
[395096042,1764424242895,-500.0,0.00013698,2]
[395096043,1764424242905,-500.0,0.00013698,2]
[395096044,1764424242914,-500.0,0.00013698,2]
[395096045,1764424242924,-500.0,0.00013698,2]
[395096046,1764424242933,-1099.3,0.00013698,2]
[395096047,1764424242941,-500.0,0.00013698,2]
[395096048,1764424242950,-500.0,0.00013698,2]
[395096049,1764424242964,-281.17503846,0.00013698,2]
[395096050,1764424242974,-524.04,0.00013698,2]
[395096051,1764424242983,-524.04,0.00013698,2]
[395096052,1764424242995,-524.04,0.00013698,2]
[395096053,1764424243006,-524.04,0.00013698,2]
[395096054,1764424243016,-524.04,0.00013698,2]
[395096055,1764424243027,-524.04,0.00013698,2]
[395096056,1764424243037,-524.04,0.00013698,2]
[395096057,1764424243047,-524.04,0.00013698,2]
[395096058,1764424243057,-524.04,0.00013698,2]
[395096059,1764424243066,-524.04,0.00013698,2]
[395096060,1764424243076,-524.04,0.00013698,2]
[395096062,1764424243089,-524.04,0.00013698,2]
[395096064,1764424243099,-524.04,0.00013698,2]
[395096066,1764424243109,-524.04,0.00013698,2]
[395096068,1764424243299,-524.04,0.00013698,2]
[395096069,1764424243309,-524.04,0.00013698,2]
[395096070,1764424243318,-524.04,0.00013698,2]
[395096071,1764424243328,-524.04,0.00013698,2]
[395096072,1764424243338,-524.04,0.00013698,2]
[395096073,1764424243347,-524.04,0.00013698,2]
[395096074,1764424243356,-524.04,0.00013698,2]
[395096075,1764424243365,-524.04,0.00013698,2]
[395096076,1764424243374,-524.04,0.00013698,2]
[395096077,1764424243383,-524.0685528,0.00013698,2]
[395096078,1764424243391,-500.0,0.00013698,2]
[395096079,1764424243400,-500.0,0.00013698,2]
[395096080,1764424243409,-596.16,0.00013698,2]
[395096081,1764424243419,-499.77129658,0.00013698,2]
[395096082,1764424243428,-500.69976563,0.00013698,2]
[395096083,1764424243438,-500.0,0.00013698,2]
[395096084,1764424243447,-500.0,0.00013698,2]
[395096085,1764424243456,-500.0,0.00013698,2]
[395096086,1764424243466,-501.67150513,0.00013698,2]
[395096087,1764424243475,-500.0,0.00013698,2]
[395096088,1764424243484,-500.0,0.00013698,2]
[395096089,1764424243496,-500.0,0.00013698,2]
[395096090,1764424243505,-500.0,0.00013698,2]
[395096091,1764424243514,-500.0,0.00013698,2]
[395096092,1764424243523,-502.06282078,0.00013698,2]
[395096093,1764424243532,-500.0,0.00013698,2]
[395096094,1764424243541,-540.78,0.00013698,2]
[395096095,1764424243550,-738.75,0.00013698,2]
[395096096,1764424243559,-500.0,0.00013698,2]
[395096097,1764424243568,-500.0,0.00013698,2]
[395096098,1764424243576,-500.0,0.00013698,2]
[395096099,1764424243585,-500.0,0.00013698,2]
[395096100,1764424243594,-401.0293617,0.00013698,2]
[395096101,1764424243603,-500.0,0.00013698,2]
[395096102,1764424243612,-500.0,0.00013698,2]
[395096103,1764424243621,-500.0,0.00013698,2]
[395096104,1764424243630,-500.0,0.00013698,2]
[395096105,1764424243640,-500.0,0.00013698,2]
[395096106,1764424243649,-500.0,0.00013698,2]
[395096107,1764424243658,-500.0,0.00013698,2]
[395096108,1764424243667,-500.0,0.00013698,2]
[395096109,1764424243677,-503.84915312,0.00013698,2]
[395096110,1764424243686,-500.0,0.00013698,2]
[395096111,1764424243695,-502.40731802,0.00013698,2]
[395096112,1764424243704,-1897.31,0.00013698,2]
[395096113,1764424243713,-745.8,0.00013698,2]
[395096114,1764424243723,-574.22,0.00013698,2]
[395096115,1764424243733,-500.0,0.00013698,2]
[395096116,1764424243742,-500.0,0.00013698,2]
[395096117,1764424243752,-249.96310558,0.00013698,2]
[395096118,1764424243761,-501.267924,0.00013698,2]
[395096119,1764424243771,-766.13,0.00013698,2]
[395096120,1764424243780,-453.98907979,0.00013698,2]
[395096121,1764424243789,-568.72912021,0.00013698,2]
[395096122,1764424243798,-500.89542806,0.00013698,2]
[395096123,1764424243807,-500.0,0.00013698,2]
[395096124,1764424243816,-500.0,0.00013698,2]
[395096125,1764424243825,-500.0,0.00013698,2]
[395096126,1764424243835,-500.0,0.00013698,2]
[395096127,1764424243844,-500.0,0.00013698,2]
[395096129,1764424243854,-556.64,0.00013698,2]
[395096131,1764424243862,-500.0,0.00013698,2]
[395096132,1764424243871,-502.89978739,0.00013698,2]
[395096133,1764424243880,-501.67061294,0.00013698,2]
[395096134,1764424243890,-547.91573396,0.00013698,2]
[395096135,1764424243899,-500.0,0.00013698,2]
[395096136,1764424243908,-500.0,0.00013698,2]
[395096137,1764424243918,-500.0,0.00013698,2]
[395096138,1764424243927,-500.0,0.00013698,2]
[395096139,1764424243936,-500.0,0.00013698,2]
[395096140,1764424243946,-500.0,0.00013698,2]
[395096141,1764424243957,-504.03307332,0.00013698,2]
[395096142,1764424243968,-500.0,0.00013698,2]
[395096143,1764424243977,-589.16121086,0.00013698,2]
[395096144,1764424243986,-500.0,0.00013698,2]
[395096145,1764424243995,-503.12556619,0.00013698,2]
[395096146,1764424244005,-500.0,0.00013698,2]
[395096147,1764424244015,-503.87442238,0.00013698,2]
[395096148,1764424244024,-500.0,0.00013698,2]
[395096149,1764424244033,-501.68429838,0.00013698,2]
[395096150,1764424244043,-500.0,0.00013698,2]
[395096151,1764424244051,-500.0,0.00013698,2]
[395096152,1764424244061,-500.0,0.00013698,2]
[395096153,1764424244071,-500.0,0.00013698,2]
[395096154,1764424244079,-500.0,0.00013698,2]
[395096155,1764424244088,-500.0,0.00013698,2]
[395096156,1764424244097,-500.0,0.00013698,2]
[395096157,1764424244106,-500.0,0.00013698,2]
[395096158,1764424244115,-502.63357672,0.00013698,2]
[395096159,1764424244123,-500.0,0.00013698,2]
[395096160,1764424244132,-500.0,0.00013698,2]
[395096161,1764424244141,-500.0,0.00013698,2]
[395096162,1764424244150,-500.0,0.00013698,2]
[395096163,1764424244159,-500.0,0.00013698,2]
[395096164,1764424244168,-500.0,0.00013698,2]
[395096165,1764424244177,-500.0,0.00013698,2]
[395096166,1764424244186,-500.0,0.00013698,2]
[395096167,1764424244196,-500.0,0.00013698,2]
[395096168,1764424244205,-189.84617609,0.00013698,2]
[395096169,1764424244214,-581.68,0.00013698,2]
[395096170,1764424244223,-500.0,0.00013698,2]
[395096171,1764424244234,-452.26749874,0.00013698,2]
[395096172,1764424244243,-500.0,0.00013698,2]
[395096173,1764424244253,-500.0,0.00013698,2]
[395096174,1764424244262,-564.08,0.00013698,2]
[395096175,1764424244271,-500.0,0.00013698,2]
[395096176,1764424244280,-3618.1,0.00013698,2]
[395096177,1764424244289,-3618.1,0.00013698,2]
[395096178,1764424244299,-3618.1,0.00013698,2]
[395096179,1764424244308,-3618.1,0.00013698,2]
[395096180,1764424244318,-3618.1,0.00013698,2]
[395096181,1764424244328,-3618.1,0.00013698,2]
[395096182,1764424244339,-3618.1,0.00013698,2]
[395096183,1764424244348,-3618.1,0.00013698,2]
[395096184,1764424244357,-3618.1,0.00013698,2]
[395096185,1764424244366,-3618.1,0.00013698,2]
[395096186,1764424244375,-3618.1,0.00013698,2]
[395096187,1764424244384,-3618.1,0.00013698,2]
[395096188,1764424244393,-500.0,0.00013698,2]
[395096189,1764424244403,-3618.1,0.00013698,2]
[395096190,1764424244412,-3618.1,0.00013698,2]
[395096191,1764424244421,-3618.1,0.00013698,2]
[395096192,1764424244431,-3618.1,0.00013698,2]
[395096193,1764424244440,-3618.1,0.00013698,2]
[395096194,1764424244449,-3618.1,0.00013698,2]
[395096195,1764424244458,-3618.1,0.00013698,2]
[395096196,1764424244467,-3618.1,0.00013698,2]
[395096197,1764424244477,-3618.1,0.00013698,2]
[395096198,1764424244486,-3618.1,0.00013698,2]
[395096199,1764424244496,-3618.1,0.00013698,2]
[395096200,1764424244512,-3618.32890816,0.00013698,2]
[395096201,1764424244521,-500.0,0.00013698,2]
[395096202,1764424244530,-182.078854,0.00013698,2]
[395096203,1764424244539,-182.078854,0.00013698,2]
[395096204,1764424244548,-182.078854,0.00013698,2]
[395096205,1764424244557,-182.078854,0.00013698,2]
[395096206,1764424244566,-182.078854,0.00013698,2]
[395096207,1764424244575,-182.078854,0.00013698,2]
[395096208,1764424244584,-182.078854,0.00013698,2]
[395096209,1764424244593,-182.078854,0.00013698,2]
[395096210,1764424244602,-182.078854,0.00013698,2]
[395096211,1764424244611,-182.078854,0.00013698,2]
[395096212,1764424244621,-182.078854,0.00013698,2]
[395096213,1764424244630,-182.078854,0.00013698,2]
[395096214,1764424244639,-182.078854,0.00013698,2]
[395096215,1764424244649,-182.078854,0.00013698,2]
[395096216,1764424244658,-834.94,0.00013698,2]
[395096217,1764424244667,-182.078854,0.00013698,2]
[395096218,1764424244676,-182.078854,0.00013698,2]
[395096219,1764424244685,-500.0,0.00013698,2]
[395096220,1764424244693,-500.0,0.00013698,2]
[395096221,1764424244702,-556.95,0.00013698,2]
[395096222,1764424244722,-500.0,0.00013698,2]
[395096223,1764424244731,-500.0,0.00013698,2]
[395096224,1764424244740,-335.73938606,0.00013698,2]
[395096225,1764424244750,-500.0,0.00013698,2]
[395096226,1764424244759,-500.0,0.00013698,2]
[395096227,1764424244768,-500.0,0.00013698,2]
[395096228,1764424244777,-500.0,0.00013698,2]
[395096229,1764424244787,-500.0,0.00013698,2]
[395096230,1764424244796,-500.0,0.00013698,2]
[395096231,1764424244805,-500.0,0.00013698,2]
[395096232,1764424244815,-500.0,0.00013698,2]
[395096233,1764424244824,-500.0,0.00013698,2]
[395096234,1764424244833,-500.0,0.00013698,2]
[395096235,1764424244843,-500.0,0.00013698,2]
[395096236,1764424244852,-500.0,0.00013698,2]
[395096237,1764424244861,-500.0,0.00013698,2]
[395096238,1764424244870,-500.0,0.00013698,2]
[395096239,1764424244880,-3577.572253,0.00013698,2]
[395096240,1764424244889,-532.79264573,0.00013698,2]
[395096241,1764424244899,-500.0,0.00013698,2]
[395096242,1764424244908,-3577.572253,0.00013698,2]
[395096243,1764424244917,-3577.572253,0.00013698,2]
[395096244,1764424244927,-3577.572253,0.00013698,2]
[395096245,1764424244936,-3577.572253,0.00013698,2]
[395096246,1764424244945,-500.0,0.00013698,2]
[395096247,1764424244956,-3577.572253,0.00013698,2]
[395096248,1764424244966,-500.0,0.00013698,2]
[395096249,1764424244976,-3577.572253,0.00013698,2]
[395096250,1764424244985,-3577.572253,0.00013698,2]
[395096251,1764424244995,-3577.572253,0.00013698,2]
[395096252,1764424245004,-3577.572253,0.00013698,2]
[395096253,1764424245014,-776.58,0.00013698,2]
[395096254,1764424245023,-3577.572253,0.00013698,2]
[395096255,1764424245033,-3577.572253,0.00013698,2]
[395096256,1764424245042,-3577.572253,0.00013698,2]
[395096257,1764424245051,-3577.572253,0.00013698,2]
[395096258,1764424245059,-3577.572253,0.00013698,2]
[395096259,1764424245068,-500.0,0.00013698,2]
[395096260,1764424245077,-3577.572253,0.00013698,2]
[395096261,1764424245086,-500.0,0.00013698,2]
[395096262,1764424245095,-170.71746016,0.00013698,2]
[395096263,1764424245105,-3577.572253,0.00013698,2]
[395096264,1764424245114,-3577.572253,0.00013698,2]
[395096265,1764424245122,-500.0,0.00013698,2]
[395096266,1764424245131,-3577.572253,0.00013698,2]
[395096267,1764424245140,-3577.57226287,0.00013698,2]
[395096268,1764424245150,-500.0,0.00013698,2]
[395096269,1764424245159,-500.0,0.00013698,2]
[395096270,1764424245168,-500.0,0.00013698,2]
[395096271,1764424245177,-500.0,0.00013698,2]
[395096272,1764424245186,-500.0,0.00013698,2]
[395096273,1764424245195,-500.0,0.00013698,2]
[395096274,1764424245205,-523.72,0.00013698,2]
[395096275,1764424245214,-500.0,0.00013698,2]
[395096276,1764424245223,-154.25649324,0.00013698,2]
[395096277,1764424245233,-500.0,0.00013698,2]
[395096278,1764424245243,-899.31,0.00013698,2]
[395096279,1764424245251,-500.0,0.00013698,2]
[395096280,1764424245261,-500.0,0.00013698,2]
[395096281,1764424245269,-500.0,0.00013698,2]
[395096282,1764424245278,-1618.79,0.00013698,2]
[395096283,1764424245287,-500.0,0.00013698,2]
[395096284,1764424245297,-1484.2,0.00013698,2]
[395096285,1764424245306,-319.69520879,0.00013698,2]
[395096286,1764424245315,-500.0,0.00013698,2]
[395096287,1764424245324,-500.0,0.00013698,2]
[395096288,1764424245333,-500.0,0.00013698,2]
[395096289,1764424245343,-500.0,0.00013698,2]
[395096290,1764424245352,-500.0,0.00013698,2]
[395096291,1764424245361,-1134.772266,0.00013698,2]
[395096292,1764424245370,-1134.772266,0.00013698,2]
[395096293,1764424245379,-1134.772266,0.00013698,2]